fUSD/lending_fUSD_20250818
["ID","MTS","AMOUNT","RATE_DAILY","PERIOD"]
[380085074,1755531767171,-2384.42,0.00031506,120]
[380085075,1755531767226,-1390.83,0.00031506,120]
[380085076,1755531767280,-3767.17,0.00031506,120]
[380085077,1755531767337,-400.0,0.00031506,120]
[380085078,1755531767396,-400.0,0.00031506,120]
[380085079,1755531767453,-400.0,0.00031506,120]
[380085080,1755531767510,-400.0,0.00031506,120]
[380085081,1755531767567,-1973.91,0.00031506,120]
[380085082,1755531767625,-400.0,0.00031506,120]
[380085083,1755531767681,-3484.28,0.00031506,120]
[380085084,1755531767737,-644.58,0.00031506,120]
[380085085,1755531767790,-518.65,0.00031506,120]
[380085086,1755531767845,-1164.03,0.00031506,120]
[380085087,1755531767899,-1069.8,0.00031506,120]
[380085088,1755531767957,-875.08,0.00031506,120]
[380085089,1755531768012,-1383.15,0.00031506,120]
[380085090,1755531768065,-400.0,0.00031506,120]
[380085091,1755531768124,-400.0,0.00031506,120]
[380085092,1755531768181,-2665.9,0.00031506,120]
[380085093,1755531768236,-400.0,0.00031506,120]
[380085094,1755531768291,-2738.61,0.00031506,120]
[380085095,1755531768350,-400.0,0.00031506,120]
[380085096,1755531768411,-1788.64,0.00031506,120]
[380085097,1755531768478,-1726.01,0.00031506,120]
[380085098,1755531768744,-400.0,0.00031506,120]
[380085099,1755531768804,-2110.2,0.00031506,120]
[380085100,1755531768864,-917.28,0.00031506,120]
[380085101,1755531768924,-8324.81,0.00031506,120]
[380085102,1755531768980,-1004.01,0.00031506,120]
[380085103,1755531769035,-848.98,0.00031506,120]
[380085104,1755531769093,-574.67,0.00031506,120]
[380085105,1755531769148,-400.0,0.00031506,120]
[380085106,1755531769204,-400.0,0.00031506,120]
[380085107,1755531769263,-1852.08,0.00031506,120]
[380085108,1755531769321,-1866.6,0.00031506,120]
[380085109,1755531769385,-3658.8,0.00031506,120]
[380085110,1755531769444,-344.92016428,0.00031506,120]
[380085111,1755531769504,-338.22600071,0.00031506,120]
[380085112,1755531769562,-630.28,0.00031506,120]
[380085113,1755531769624,-400.0,0.00031506,120]
[380085114,1755531769683,-535.53,0.00031506,120]
[380085115,1755531769739,-2748.24,0.00031506,120]
[380085116,1755531769795,-1190.81,0.00031506,120]
[380085117,1755531769852,-400.0,0.00031506,120]
[380085118,1755531769906,-456.75,0.00031506,120]
[380085119,1755531769961,-1243.76,0.00031506,120]
[380085120,1755531770015,-167.74204361,0.00031506,120]
[380085121,1755531770068,-2338.11,0.00031506,120]
[380085122,1755531770124,-1427.47,0.00031506,120]
[380085123,1755531770176,-400.0,0.00031506,120]
[380085124,1755531770229,-3943.47,0.00031506,120]
[380085125,1755531770286,-537.58,0.00031506,120]
[380085126,1755531770343,-1213.58,0.00031506,120]
[380085127,1755531770400,-400.0,0.00031506,120]
[380085128,1755531770456,-400.0,0.00031506,120]
[380085129,1755531770511,-1926.09,0.00031506,120]
[380085130,1755531770567,-400.0,0.00031506,120]
[380085131,1755531770629,-3806.85,0.00031506,120]
[380085132,1755531770685,-3202.76,0.00031506,120]
[380085133,1755531770740,-771.26,0.00031506,120]
[380085134,1755531770797,-685.53,0.00031506,120]
[380085135,1755531770853,-400.0,0.00031506,120]
[380085136,1755531770908,-810.81,0.00031506,120]
[380085137,1755531770964,-2687.84,0.00031506,120]
[380085138,1755531771019,-3947.63,0.00031506,120]
[380085139,1755531771075,-400.0,0.00031506,120]
[380085140,1755531771137,-467.48,0.00031506,120]
[380085141,1755531771193,-400.0,0.00031506,120]
[380085142,1755531771253,-1453.85,0.00031506,120]
[380085143,1755531771315,-400.0,0.00031506,120]
[380085144,1755531771379,-8786.24,0.00031506,120]
[380085145,1755531771436,-1437.44,0.00031506,120]
[380085146,1755531771491,-2496.89,0.00031506,120]
[380085147,1755531771547,-719.71,0.00031506,120]
[380085148,1755531771603,-2311.49,0.00031506,120]
[380085149,1755531771660,-610.18,0.00031506,120]
[380085150,1755531771716,-400.0,0.00031506,120]
[380085151,1755531771771,-400.0,0.00031506,120]
[380085152,1755531771827,-400.0,0.00031506,120]
[380085153,1755531771920,-2131.27,0.00031506,120]
[380085154,1755531771998,-3944.16,0.00031506,120]
[380085155,1755531772051,-1507.1,0.00031506,120]
[380085156,1755531772256,-400.0,0.00031506,120]
[380085157,1755531772315,-1866.07,0.00031506,120]
[380085158,1755531772376,-2135.37,0.00031506,120]
[380085159,1755531772432,-400.0,0.00031506,120]
[380085160,1755531772488,-400.0,0.00031506,120]
[380085161,1755531772543,-488.62,0.00031506,120]
[380085162,1755531772599,-400.0,0.00031506,120]
[380085163,1755531772655,-633.08,0.00031506,120]
[380085164,1755531772710,-755.93,0.00031506,120]
[380085165,1755531772765,-400.0,0.00031506,120]
[380085166,1755531772823,-3553.6,0.00031506,120]
[380085167,1755531772880,-2037.42,0.00031506,120]
[380085168,1755531772937,-1326.07,0.00031506,120]
[380085169,1755531772992,-400.0,0.00031506,120]
[380085170,1755531773048,-2815.14,0.00031506,120]
[380085171,1755531773103,-1448.97,0.00031506,120]
[380085172,1755531773157,-318.7,0.00031506,120]
[380085173,1755531773214,-1845.61,0.00031506,120]
[380085174,1755531773269,-2916.73,0.00031506,120]
[380085175,1755531773333,-6391.15,0.00031506,120]
[380085176,1755531773393,-694.96,0.00031506,120]
[380085177,1755531773449,-400.0,0.00031506,120]
[380085178,1755531773508,-3235.58,0.00031506,120]
[380085179,1755531773565,-400.0,0.00031506,120]
[380085180,1755531773626,-1189.34,0.00031506,120]
[380085181,1755531773682,-946.55,0.00031506,120]
[380085182,1755531773735,-926.58,0.00031506,120]
[380085183,1755531773791,-7818.05,0.00031506,120]
[380085184,1755531773847,-400.0,0.00031506,120]
[380085185,1755531773902,-400.0,0.00031506,120]
[380085186,1755531773957,-2192.69,0.00031506,120]
[380085187,1755531774011,-331.73,0.00031506,120]
[380085188,1755531774065,-400.0,0.00031506,120]
[380085189,1755531774124,-453.06,0.00031506,120]
[380085190,1755531774178,-663.5,0.00031506,120]
[380085191,1755531774238,-623.55,0.00031506,120]
[380085192,1755531774296,-599.71,0.00031506,120]
[380085193,1755531774356,-954.45,0.00031506,120]
[380085194,1755531774416,-1719.17,0.00031506,120]
[380085195,1755531774474,-402.23113298,0.00031506,120]
[380085196,1755531774533,-7999.44,0.00031506,120]
[380085197,1755531774591,-1065.95,0.00031506,120]
[380085198,1755531774647,-1783.6,0.00031506,120]
[380085199,1755531774704,-400.0,0.00031506,120]
[380085200,1755531774760,-1276.28,0.00031506,120]
[380085201,1755531774816,-711.22,0.00031506,120]
[380085202,1755531774875,-856.05,0.00031506,120]
[380085203,1755531774931,-913.78,0.00031506,120]
[380085204,1755531774986,-971.97,0.00031506,120]
[380085205,1755531775043,-1727.56,0.00031506,120]
[380085206,1755531775109,-998.0,0.00031506,120]
[380085207,1755531775167,-2835.46,0.00031506,120]
[380085208,1755531775223,-400.0,0.00031506,120]
[380085209,1755531775281,-454.94,0.00031506,120]
[380085210,1755531775339,-400.0,0.00031506,120]
[380085211,1755531775401,-3930.35,0.00031506,120]
[380085212,1755531775461,-1870.62,0.00031506,120]
[380085213,1755531775522,-4673.47,0.00031506,120]
[380085214,1755531775581,-812.33,0.00031506,120]
[380085215,1755531775640,-400.0,0.00031506,120]
[380085216,1755531775697,-1607.07,0.00031506,120]
[380085217,1755531775753,-1953.1,0.00031506,120]
[380085218,1755531775809,-459.32,0.00031506,120]
[380085219,1755531775874,-1057.81,0.00031506,120]
[380085220,1755531775932,-400.0,0.00031506,120]
[380085221,1755531775990,-852.5,0.00031506,120]
[380085222,1755531776050,-457.57,0.00031506,120]
[380085223,1755531776108,-555.31,0.00031506,120]
[380085224,1755531776166,-400.0,0.00031506,120]
[380085225,1755531776227,-2141.21,0.00031506,120]
[380085226,1755531776287,-400.0,0.00031506,120]
[380085227,1755531776353,-414.08,0.00031506,120]
[380085228,1755531776411,-400.0,0.00031506,120]
[380085229,1755531776471,-400.0,0.00031506,120]
[380085230,1755531776531,-820.63,0.00031506,120]
[380085231,1755531776589,-531.79,0.00031506,120]
[380085232,1755531776647,-401.22266401,0.00031506,120]
[380085233,1755531776706,-4375.75,0.00031506,120]
[380085234,1755531776766,-499.24,0.00031506,120]
[380085235,1755531776826,-938.44,0.00031506,120]
[380085236,1755531776883,-1509.44,0.00031506,120]
[380085237,1755531776941,-689.65,0.00031506,120]
[380085238,1755531777005,-795.49,0.00031506,120]
[380085239,1755531777065,-1055.35,0.00031506,120]
[380085240,1755531777131,-11349.52,0.00031506,120]
[380085241,1755531777188,-400.0,0.00031506,120]
[380085242,1755531777246,-878.19,0.00031506,120]
[380085243,1755531777306,-400.0,0.00031506,120]
[380085244,1755531777367,-400.0,0.00031506,120]
[380085245,1755531777467,-555.87,0.00031506,120]
[380085246,1755531777534,-1362.08,0.00031506,120]
[380085247,1755531777593,-2424.39,0.00031506,120]
[380085248,1755531777649,-400.0,0.00031506,120]
[380085249,1755531778226,-655.76,0.00031506,120]
[380085250,1755531778284,-787.43,0.00031506,120]
[380085251,1755531778341,-406.83,0.00031506,120]
[380085252,1755531778396,-422.14,0.00031506,120]
[380085253,1755531778451,-400.0,0.00031506,120]
[380085254,1755531778506,-1001.38,0.00031506,120]
[380085255,1755531778561,-2871.41,0.00031506,120]
[380085256,1755531778613,-400.0,0.00031506,120]
[380085257,1755531778668,-9613.63,0.00031506,120]
[380085258,1755531778722,-261.02,0.00031506,120]
[380085259,1755531778774,-400.0,0.00031506,120]
[380085260,1755531778827,-256.88,0.00031506,120]
[380085261,1755531778881,-6103.49,0.00031506,120]
[380085262,1755531778933,-400.0,0.00031506,120]
[380085263,1755531778986,-1032.7,0.00031506,120]
[380085264,1755531779040,-1590.3,0.00031506,120]
[380085265,1755531779094,-922.62,0.00031506,120]
[380085266,1755531779151,-400.0,0.00031506,120]
[380085267,1755531779208,-1806.64,0.00031506,120]
[380085268,1755531779268,-2138.74,0.00031506,120]
[380085269,1755531779331,-937.85,0.00031506,120]
[380085270,1755531779393,-1839.29,0.00031506,120]
[380085271,1755531779450,-2191.76,0.00031506,120]
[380085272,1755531779507,-866.67,0.00031506,120]
[380085273,1755531779562,-576.98,0.00031506,120]
[380085274,1755531779621,-400.0,0.00031506,120]
[380085275,1755531779676,-400.0,0.00031506,120]
[380085276,1755531779732,-400.0,0.00031506,120]
[380085277,1755531779787,-400.0,0.00031506,120]
[380085278,1755531779843,-400.0,0.00031506,120]
[380085279,1755531779899,-400.0,0.00031506,120]
[380085280,1755531779953,-821.24,0.00031506,120]
[380085281,1755531780009,-400.0,0.00031506,120]
[380085282,1755531780065,-945.91,0.00031506,120]
[380085283,1755531780122,-400.0,0.00031506,120]
[380085284,1755531780176,-2059.16,0.00031506,120]
[380085285,1755531780236,-400.0,0.00031506,120]
[380085286,1755531780294,-2339.99,0.00031506,120]
[380085287,1755531780355,-400.0,0.00031506,120]
[380085288,1755531780409,-400.0,0.00031506,120]
[380085289,1755531780465,-850.0,0.00031506,120]
[380085290,1755531780521,-1388.0,0.00031506,120]
[380085291,1755531780575,-400.0,0.00031506,120]
[380085292,1755531780634,-725.74,0.00031506,120]
[380085293,1755531780689,-462.2,0.00031506,120]
[380085294,1755531780746,-1083.62,0.00031506,120]
[380085295,1755531780801,-1915.22,0.00031506,120]
[380085296,1755531780856,-289.55706159,0.00031506,120]
[380085297,1755531780912,-1164.85,0.00031506,120]
[380085298,1755531780970,-1533.59,0.00031506,120]
[380085299,1755531781025,-400.0,0.00031506,120]
[380085300,1755531781084,-3338.99,0.00031506,120]
[380085301,1755531781138,-719.43,0.00031506,120]
[380085302,1755531781195,-3124.15,0.00031506,120]
[380085303,1755531781250,-550.81,0.00031506,120]
[380085304,1755531781308,-570.12,0.00031506,120]
[380085305,1755531781367,-400.0,0.00031506,120]
[380085306,1755531781423,-429.58,0.00031506,120]
[380085307,1755531781477,-3704.67,0.00031506,120]
[380085308,1755531781534,-649.5,0.00031506,120]
[380085309,1755531781590,-727.89,0.00031506,120]
[380085310,1755531781646,-400.0,0.00031506,120]
[380085311,1755531781706,-400.0,0.00031506,120]
[380085312,1755531781765,-501.82,0.00031506,120]
[380085313,1755531781821,-400.0,0.00031506,120]
[380085314,1755531781882,-3599.97,0.00031506,120]
[380085315,1755531781940,-652.56,0.00031506,120]
[380085316,1755531781997,-400.0,0.00031506,120]
[380085317,1755531782055,-4041.87,0.00031506,120]
[380085318,1755531782112,-993.29,0.00031506,120]
[380085319,1755531782169,-379.22795996,0.00031506,120]
[380085320,1755531782226,-400.0,0.00031506,120]
[380085321,1755531782286,-2182.65,0.00031506,120]
[380085322,1755531782344,-436.88,0.00031506,120]
[380085323,1755531782402,-536.12,0.00031506,120]
[380085324,1755531782462,-400.0,0.00031506,120]
[380085325,1755531782519,-482.9,0.00031506,120]
[380085326,1755531782672,-1109.99,0.00031506,120]
[380085327,1755531782730,-400.0,0.00031506,120]
[380085328,1755531782786,-654.36,0.00031506,120]
[380085329,1755531782843,-331.09,0.00031506,120]
[380085330,1755531782901,-400.0,0.00031506,120]
[380085331,1755531782968,-6711.55,0.00031506,120]
[380085332,1755531783065,-625.81,0.00031506,120]
[380085333,1755531783133,-1234.88,0.00031506,120]
[380085334,1755531783191,-2099.38,0.00031506,120]
[380085335,1755531783251,-400.0,0.00031506,120]
[380085336,1755531783312,-400.0,0.00031506,120]
[380085337,1755531783381,-400.0,0.00031506,120]
[380085338,1755531783448,-400.0,0.00031506,120]
[380085339,1755531783510,-467.75,0.00031506,120]
[380085340,1755531783574,-560.58,0.00031506,120]
[380085341,1755531783634,-3983.08,0.00031506,120]
[380085342,1755531783695,-1276.43,0.00031506,120]
[380085343,1755531783755,-1163.85,0.00031506,120]
[380085344,1755531783814,-499.9,0.00031506,120]
[380085345,1755531783871,-610.68,0.00031506,120]
[380085346,1755531783931,-896.63,0.00031506,120]
[380085347,1755531783990,-400.0,0.00031506,120]
[380085348,1755531784052,-1247.42,0.00031506,120]
[380085349,1755531784114,-3650.18,0.00031506,120]
[380085350,1755531784175,-400.0,0.00031506,120]
[380085351,1755531784236,-152.0,0.00031557,60]
[380085352,1755531784302,-152.0,0.00031771,61]
[380085353,1755531784370,-500.0,0.0003178,60]
[380085354,1755531784430,-500.0,0.0003178,60]
[380085355,1755531784491,-500.0,0.0003178,60]
[380085356,1755531784550,-500.0,0.0003178,60]
[380085357,1755531784608,-170.08162908,0.0003178,60]
[380085358,1755531784670,-252.6357661,0.0003178,60]
[380085359,1755531784731,-1367.0,0.0003178,60]
[380085360,1755531784793,-500.0,0.0003178,60]
[380085361,1755531784852,-500.0,0.0003178,60]
[380085362,1755531784913,-3518.0,0.0003178,60]
[380085363,1755531784972,-500.0,0.0003178,60]
[380085364,1755531785032,-150.0,0.0003178,60]
[380085365,1755531785093,-410.8,0.0003178,120]
[380085366,1755531785153,-401.58574426,0.0003178,120]
[380085367,1755531785214,-349.8872386,0.0003178,120]
[380085368,1755531785275,-400.0,0.0003178,120]
[380085369,1755531785336,-400.0,0.0003178,120]
[380085370,1755531785397,-500.0,0.0003178,120]
[380085371,1755531785456,-224.45901866,0.0003178,120]
[380085372,1755531785518,-400.0,0.0003178,120]
[380085373,1755531785582,-728.98,0.0003178,120]
[380085374,1755531785654,-2118.21,0.0003178,120]
[380085375,1755531785715,-400.0,0.0003178,120]
[380085376,1755531785775,-794.34,0.0003178,120]
[380085377,1755531785840,-1423.77,0.0003178,120]
[380085378,1755531785902,-2691.56,0.0003178,120]
[380085379,1755531785962,-638.63,0.0003178,120]
[380085380,1755531786019,-449.93,0.0003178,120]
[380085381,1755531786077,-656.01,0.0003178,120]
[380085382,1755531786141,-2692.05,0.0003178,120]
[380085383,1755531786200,-400.0,0.0003178,120]
[380085384,1755531786260,-400.0,0.0003178,120]
[380085385,1755531786321,-400.0,0.0003178,120]
[380085386,1755531786385,-1016.43,0.0003178,120]
[380085387,1755531786448,-400.0,0.0003178,120]
[380085388,1755531786508,-841.86,0.0003178,120]
[380085389,1755531786569,-941.04,0.0003178,120]
[380085390,1755531786627,-400.0,0.0003178,120]
[380085391,1755531786685,-442.02,0.0003178,120]
[380085392,1755531786744,-400.0,0.0003178,120]
[380085393,1755531786803,-1404.07,0.0003178,120]
[380085394,1755531786860,-1392.43,0.0003178,120]
[380085395,1755531786918,-668.19,0.0003178,120]
[380085396,1755531786975,-400.0,0.0003178,120]
[380085397,1755531787031,-822.85,0.0003178,120]
[380085398,1755531787093,-1078.83,0.0003178,120]
[380085399,1755531787150,-426.02,0.0003178,120]
[380085400,1755531787207,-400.0,0.0003178,120]
[380085401,1755531787264,-400.0,0.0003178,120]
[380085402,1755531787323,-251.97419497,0.0003178,120]
[380085403,1755531787382,-400.0,0.0003178,120]
[380085404,1755531787443,-460.79,0.0003178,120]
[380085405,1755531787501,-1408.19,0.0003178,120]
[380085406,1755531787561,-1481.88,0.0003178,120]
[380085407,1755531787622,-400.0,0.0003178,120]
[380085408,1755531787679,-400.0,0.0003178,120]
[380085409,1755531787737,-400.0,0.0003178,120]
[380085410,1755531787791,-400.0,0.0003178,120]
[380085411,1755531787846,-400.0,0.0003178,120]
[380085412,1755531787898,-400.0,0.0003178,120]
[380085413,1755531787955,-645.66,0.0003178,120]
[380085414,1755531788009,-1724.7,0.0003178,120]
[380085415,1755531788064,-2605.68,0.0003178,120]
[380085416,1755531788117,-1208.8,0.0003178,120]
[380085417,1755531788172,-400.0,0.0003178,120]
[380085418,1755531788225,-1463.54,0.0003178,120]
[380085419,1755531788280,-827.48,0.0003178,120]
[380085420,1755531788337,-402.47270622,0.0003178,120]
[380085421,1755531788394,-400.0,0.0003178,120]
[380085422,1755531788450,-666.09,0.0003178,120]
[380085423,1755531788505,-151.30283153,0.0003178,120]
[380085424,1755531788556,-400.0,0.0003178,120]
[380085425,1755531788633,-400.0,0.0003178,120]
[380085426,1755531788733,-917.51,0.0003178,120]
[380085427,1755531788787,-400.0,0.0003178,120]
[380085428,1755531788843,-400.0,0.0003178,120]
[380085429,1755531788897,-400.0,0.0003178,120]
[380085430,1755531788952,-1017.37,0.0003178,120]
[380085431,1755531789006,-585.94,0.0003178,120]
[380085432,1755531789061,-400.0,0.0003178,120]
[380085433,1755531789115,-812.45,0.0003178,120]
[380085434,1755531789171,-400.0,0.0003178,120]
[380085435,1755531789225,-400.0,0.0003178,120]
[380085436,1755531789281,-423.65,0.0003178,120]
[380085437,1755531789346,-1993.07,0.0003178,120]
[380085438,1755531789405,-400.0,0.0003178,120]
[380085439,1755531789462,-400.0,0.0003178,120]
[380085440,1755531789521,-1176.66,0.0003178,120]
[380085441,1755531789578,-400.0,0.0003178,120]
[380085442,1755531789640,-676.51,0.0003178,120]
[380085443,1755531789841,-1189.29,0.0003178,120]
[380085444,1755531789898,-400.0,0.0003178,120]
[380085445,1755531789954,-400.0,0.0003178,120]
[380085446,1755531790010,-1738.42,0.0003178,120]
[380085447,1755531790065,-478.52,0.0003178,120]
[380085448,1755531790122,-400.0,0.0003178,120]
[380085449,1755531790178,-683.7,0.0003178,120]
[380085450,1755531790235,-267.08928747,0.0003178,120]
[380085451,1755531790290,-400.0,0.0003178,120]
[380085452,1755531790349,-408.9,0.0003178,120]
[380085453,1755531790408,-791.15,0.0003178,120]
[380085454,1755531790468,-191.6400477,0.0003178,120]
[380085455,1755531790524,-1281.91,0.0003178,120]
[380085456,1755531790579,-760.18,0.0003178,120]
[380085457,1755531790638,-447.86,0.0003178,120]
[380085458,1755531790695,-652.05,0.0003178,120]
[380085459,1755531790751,-1875.51,0.0003178,120]
[380085460,1755531790806,-400.0,0.0003178,120]
[380085461,1755531790862,-659.58,0.0003178,120]
[380085462,1755531790918,-516.16153186,0.0003178,120]
[380085463,1755531790975,-616.57,0.0003178,120]
[380085464,1755531791031,-249.74437892,0.0003178,120]
[380085465,1755531791087,-400.0,0.0003178,120]
[380085466,1755531791147,-400.0,0.0003178,120]
[380085467,1755531791203,-400.0,0.0003178,120]
[380085468,1755531791259,-857.02,0.0003178,60]
[380085469,1755531791316,-400.0,0.0003178,120]
[380085470,1755531791375,-922.34,0.0003178,120]
[380085471,1755531791436,-400.0,0.0003178,120]
[380085472,1755531791493,-400.0,0.0003178,120]
[380085473,1755531791557,-400.0,0.0003178,120]
[380085474,1755531791616,-405.18691276,0.0003178,120]
[380085475,1755531791675,-400.98843207,0.0003178,120]
[380085476,1755531791732,-400.0,0.0003178,120]
[380085477,1755531791789,-400.0,0.0003178,120]
[380085478,1755531791846,-400.0,0.0003178,120]
[380085479,1755531791902,-769.02,0.0003178,120]
[380085480,1755531791958,-400.0,0.0003178,120]
[380085481,1755531792014,-997.39,0.0003178,120]
[380085482,1755531792070,-400.0,0.0003178,120]
[380085483,1755531792127,-626.4,0.0003178,120]
[380085484,1755531792182,-513.7,0.0003178,120]
[380085485,1755531792238,-2308.89,0.0003178,120]
[380085486,1755531792295,-1254.79,0.0003178,120]
[380085487,1755531792357,-2004.17,0.0003178,120]
[380085488,1755531792415,-2066.12,0.0003178,120]
[380085489,1755531792477,-400.0,0.0003178,120]
[380085490,1755531792533,-1076.79,0.0003178,120]
[380085491,1755531792590,-400.0,0.0003178,120]
[380085492,1755531792648,-1331.65,0.0003178,120]
[380085493,1755531792705,-400.0,0.0003178,120]
[380085494,1755531792761,-400.0,0.0003178,120]
[380085495,1755531792821,-1484.93,0.0003178,120]
[380085496,1755531792877,-475.06502275,0.0003178,120]
[380085497,1755531792935,-427.25,0.0003178,120]
[380085498,1755531792990,-400.0,0.0003178,120]
[380085499,1755531793048,-400.0,0.0003178,120]
[380085500,1755531793108,-461.92,0.0003178,120]
[380085501,1755531793168,-400.0,0.0003178,120]
[380085502,1755531793225,-400.0,0.0003178,120]
[380085503,1755531793285,-672.4,0.0003178,120]
[380085504,1755531793346,-1219.32,0.0003178,120]
[380085505,1755531793407,-2190.21,0.0003178,120]
[380085506,1755531793469,-1234.43,0.0003178,120]
[380085507,1755531793528,-400.0,0.0003178,120]
[380085508,1755531793589,-1124.58,0.0003178,120]
[380085509,1755531793650,-400.0,0.0003178,120]
[380085510,1755531793709,-663.57,0.0003178,120]
[380085511,1755531793766,-400.0,0.0003178,120]
[380085512,1755531793825,-400.0,0.0003178,120]
[380085513,1755531793881,-400.0,0.0003178,120]
[380085514,1755531793937,-571.42,0.0003178,120]
[380085515,1755531793995,-613.18,0.0003178,120]
[380085516,1755531794053,-400.0,0.0003178,120]
[380085517,1755531794113,-400.0,0.0003178,120]
[380085518,1755531794185,-400.0,0.0003178,120]
[380085519,1755531794270,-1009.99,0.0003178,120]
[380085520,1755531794336,-1723.56,0.0003178,120]
[380085521,1755531794398,-990.61,0.0003178,120]
[380085522,1755531794457,-400.0,0.0003178,120]
[380085523,1755531794516,-620.15,0.0003178,120]
[380085524,1755531794576,-400.0,0.0003178,120]
[380085525,1755531794642,-866.99,0.0003178,120]
[380085526,1755531794707,-400.0,0.0003178,120]
[380085527,1755531794765,-445.24,0.0003178,120]
[380085528,1755531794825,-400.0,0.0003178,120]
[380085529,1755531794882,-400.0,0.0003178,120]
[380085530,1755531794942,-1012.03,0.0003178,120]
[380085531,1755531795008,-637.19,0.0003178,120]
[380085532,1755531795074,-1013.55,0.0003178,120]
[380085533,1755531795133,-754.1,0.0003178,120]
[380085534,1755531795193,-192.44249408,0.0003178,120]
[380085535,1755531795254,-400.0,0.0003178,120]
[380085536,1755531795740,-400.0,0.0003178,120]
[380085537,1755531795872,-501.29,0.0003178,120]
[380085538,1755531795929,-1211.61,0.0003178,120]
[380085539,1755531795985,-1093.27,0.0003178,120]
[380085540,1755531796042,-769.96,0.0003178,120]
[380085541,1755531796097,-691.44,0.0003178,120]
[380085542,1755531796168,-408.45,0.0003178,120]
[380085543,1755531796235,-270.41447155,0.0003178,120]
[380085544,1755531796296,-1154.25,0.0003178,120]
[380085545,1755531796360,-400.0,0.0003178,120]
[380085546,1755531796421,-565.61,0.0003178,120]
[380085547,1755531796481,-2122.47,0.0003178,120]
[380085548,1755531796544,-453.83,0.0003178,120]
[380085549,1755531796603,-400.0,0.0003178,120]
[380085550,1755531796660,-400.0,0.0003178,120]
[380085551,1755531796720,-695.51,0.0003178,120]
[380085552,1755531796781,-401.68284272,0.0003178,120]
[380085553,1755531796843,-1385.92,0.0003178,120]
[380085554,1755531796904,-400.0,0.0003178,120]
[380085555,1755531796967,-400.0,0.0003178,120]
[380085556,1755531797025,-805.66,0.0003178,120]
[380085557,1755531797084,-400.0,0.0003178,120]
[380085558,1755531797143,-1464.33,0.0003178,120]
[380085559,1755531797203,-400.0,0.0003178,120]
[380085560,1755531797259,-400.0,0.0003178,120]
[380085561,1755531797325,-534.82,0.0003178,120]
[380085562,1755531797382,-951.37,0.0003178,120]
[380085563,1755531797441,-400.0,0.0003178,120]
[380085564,1755531797498,-455.01,0.0003178,120]
[380085565,1755531797555,-1106.6,0.0003178,120]
[380085566,1755531797613,-400.0,0.0003178,120]
[380085567,1755531797671,-400.0,0.0003178,120]
[380085568,1755531797729,-445.88,0.0003178,120]
[380085569,1755531797788,-400.0,0.0003178,120]
[380085570,1755531797849,-604.45,0.0003178,120]
[380085571,1755531797906,-400.0,0.0003178,120]
[380085572,1755531797963,-690.75,0.0003178,120]
[380085573,1755531798021,-400.0,0.0003178,120]